fUST/lending_fUST_20250226
["ID","MTS","AMOUNT","RATE_DAILY","PERIOD"]
[354498288,1740539445688,-503.31716805,0.0003863,2]
[354498289,1740539445698,-517.61,0.0003863,2]
[354498290,1740539445708,-525.64471973,0.0003863,2]
[354498291,1740539445720,-274.79442448,0.0003863,2]
[354498292,1740539445732,-225.20557552,0.0003863,2]
[354498293,1740539445742,-450.10162752,0.0003863,2]
[354498294,1740539445755,-49.89837248,0.0003863,2]
[354498295,1740539445764,-500.0,0.0003863,2]
[354498296,1740539445773,-1106.88,0.0003863,2]
[354498297,1740539445783,-500.0,0.0003863,2]
[354498298,1740539445792,-168.51501054,0.0003863,2]
[354498299,1740539445801,-500.0,0.0003863,2]
[354498300,1740539445811,-500.0,0.0003863,2]
[354498301,1740539445820,-500.0,0.0003863,2]
[354498302,1740539445830,-500.0,0.0003863,2]
[354498303,1740539445839,-500.0,0.0003863,2]
[354498304,1740539445850,-613.02716078,0.0003863,2]
[354498305,1740539445863,-500.0,0.0003863,2]
[354498306,1740539445874,-977.54,0.0003863,2]
[354498307,1740539445884,-500.0,0.0003863,2]
[354498308,1740539445894,-500.0,0.0003863,2]
[354498309,1740539445903,-500.0,0.0003863,2]
[354498310,1740539445913,-686.91,0.0003863,2]
[354498311,1740539445922,-502.01802636,0.0003863,2]
[354498312,1740539445931,-500.0,0.0003863,2]
[354498313,1740539445941,-564.99,0.0003863,2]
[354498314,1740539445950,-744.72,0.0003863,2]
[354498315,1740539445960,-500.0,0.0003863,2]
[354498316,1740539445971,-458.57994388,0.0003863,2]
[354498317,1740539445981,-500.0,0.0003863,2]
[354498318,1740539445991,-500.0,0.0003863,2]
[354498319,1740539446001,-500.0,0.0003863,2]
[354498320,1740539446012,-500.0,0.0003863,2]
[354498321,1740539446022,-1941.88,0.0003863,2]
[354498322,1740539446031,-500.0,0.0003863,2]
[354498323,1740539446044,-500.0,0.0003863,2]
[354498324,1740539446054,-500.0,0.0003863,2]
[354498325,1740539446064,-500.0,0.0003863,2]
[354498326,1740539446074,-500.0,0.0003863,2]
[354498327,1740539446084,-500.0,0.0003863,2]
[354498328,1740539446094,-500.0,0.0003863,2]
[354498329,1740539446103,-500.0,0.0003863,2]
[354498330,1740539446113,-500.0,0.0003863,2]
[354498331,1740539446122,-500.0,0.0003863,2]
[354498332,1740539446133,-500.0,0.0003863,2]
[354498333,1740539446142,-500.0,0.0003863,2]
[354498334,1740539446152,-500.0,0.0003863,2]
[354498335,1740539446161,-500.0,0.0003863,2]
[354498336,1740539446171,-300.0,0.0003863,120]
[354498337,1740539446181,-500.0,0.0003863,2]
[354498338,1740539446194,-507.6904901,0.0003863,2]
[354498339,1740539446205,-272.821296,0.0003863,14]
[354498340,1740539446215,-500.0,0.0003863,2]
[354498341,1740539446225,-272.821296,0.0003863,14]
[354498342,1740539446237,-500.0,0.0003863,2]
[354498343,1740539446247,-272.821296,0.0003863,14]
[354498344,1740539446256,-573.1,0.0003863,2]
[354498346,1740539446266,-500.0,0.0003863,2]
[354498347,1740539446276,-500.0,0.0003863,2]
[354498350,1740539446286,-757.76956598,0.0003863,2]
[354498352,1740539446309,-434.73043402,0.0003863,2]
[354498353,1740539446319,-272.821296,0.0003863,14]
[354498354,1740539446329,-500.0,0.0003863,2]
[354498355,1740539446339,-272.821296,0.0003863,14]
[354498356,1740539446349,-272.821296,0.0003863,14]
[354498357,1740539446358,-503.0090842,0.0003863,2]
[354498358,1740539446369,-500.0,0.0003863,2]
[354498359,1740539446379,-500.0,0.0003863,2]
[354498360,1740539446388,-997.32,0.0003863,2]
[354498361,1740539446398,-502.64231476,0.0003863,2]
[354498362,1740539446408,-151.0,0.0003863,14]
[354498363,1740539446417,-151.0,0.0003863,14]
[354498364,1740539446428,-500.0,0.0003863,2]
[354498365,1740539446438,-151.0,0.0003863,14]
[354498366,1740539446449,-612.8,0.0003863,2]
[354498367,1740539446459,-594.00803775,0.0003863,2]
[354498368,1740539446469,-151.0,0.0003863,14]
[354498369,1740539446479,-584.67,0.0003863,2]
[354498370,1740539446490,-500.0,0.0003863,2]
[354498371,1740539446499,-500.0,0.0003863,2]
[354498372,1740539446508,-241.732592,0.0003863,14]
[354498373,1740539446518,-501.5412865,0.0003863,2]
[354498374,1740539446527,-500.0,0.0003863,2]
[354498375,1740539446536,-519.05,0.0003863,2]
[354498376,1740539446545,-500.0,0.0003863,2]
[354498377,1740539446554,-151.0,0.0003863,14]
[354498378,1740539446564,-151.0,0.0003863,14]
[354498379,1740539446574,-151.0,0.0003863,14]
[354498380,1740539446583,-654.71,0.0003863,2]
[354498381,1740539446592,-190.322614,0.0003863,14]
[354498382,1740539446602,-190.322614,0.0003863,14]
[354498383,1740539446612,-190.322614,0.0003863,14]
[354498384,1740539446621,-156.866884,0.0003863,14]
[354498385,1740539446631,-500.0,0.0003863,2]
[354498386,1740539446641,-500.0,0.0003863,2]
[354498387,1740539446651,-2106.19,0.0003863,2]
[354498388,1740539446660,-190.322614,0.0003863,14]
[354498389,1740539446670,-2674.57,0.0003863,2]
[354498390,1740539446679,-190.322614,0.0003863,14]
[354498391,1740539446688,-190.322614,0.0003863,14]
[354498392,1740539446698,-500.0,0.0003863,2]
[354498393,1740539446707,-1502.54,0.0003863,2]
[354498394,1740539446717,-501.79371007,0.0003863,2]
[354498395,1740539446727,-500.0,0.0003863,2]
[354498396,1740539446737,-393.06081369,0.0003863,2]
[354498397,1740539446746,-500.0,0.0003863,2]
[354498398,1740539446755,-5645.92,0.0003863,2]
[354498399,1740539446765,-500.0,0.0003863,2]
[354498400,1740539446775,-154.609777,0.0003863,14]
[354498401,1740539446785,-2116.4,0.0003863,2]
[354498403,1740539446794,-424.49122508,0.0003863,2]
[354498406,1740539446807,-568.27877492,0.0003863,2]
[354498408,1740539446819,-151.0,0.0003863,14]
[354498410,1740539446829,-151.0,0.0003863,14]
[354498411,1740539446838,-422.77140506,0.0003863,2]
[354498414,1740539446850,-77.22859494,0.0003863,2]
[354498416,1740539446859,-500.0,0.0003863,2]
[354498418,1740539446868,-500.0,0.0003863,2]
[354498420,1740539446878,-644.73,0.0003863,2]
[354498421,1740539446887,-993.06,0.0003863,2]
[354498423,1740539446896,-9529.51,0.0003863,2]
[354498425,1740539446906,-2843.46,0.0003863,2]
[354498427,1740539446915,-500.0,0.0003863,2]
[354498429,1740539446925,-500.0,0.0003863,2]
[354498431,1740539446934,-10573.4,0.0003863,2]
[354498433,1740539446944,-501.23435587,0.0003863,2]
[354498434,1740539446953,-728.32,0.0003863,2]
[354498435,1740539446963,-500.0,0.0003863,2]
[354498436,1740539446976,-500.0,0.0003863,2]
[354498437,1740539446985,-28.72245954,0.0003863,2]
[354498438,1740539446998,-471.27754046,0.0003863,2]
[354498439,1740539447052,-2688.65,0.0003863,2]
[354498440,1740539447061,-506.39051459,0.0003863,2]
[354498441,1740539447071,-2062.96,0.0003863,2]
[354498442,1740539447081,-500.0,0.0003863,2]
[354498443,1740539447090,-500.0,0.0003863,2]
[354498444,1740539447099,-500.0,0.0003863,2]
[354498445,1740539447109,-500.0,0.0003863,2]
[354498446,1740539447118,-3111.76,0.0003863,2]
[354498447,1740539447128,-500.0,0.0003863,2]
[354498448,1740539447137,-9945.65,0.0003863,2]
[354498449,1740539447147,-504.327497,0.0003863,2]
[354498450,1740539447157,-581.85,0.0003863,2]
[354498451,1740539447166,-500.0,0.0003863,2]
[354498452,1740539447175,-500.0,0.0003863,2]
[354498453,1740539447185,-500.0,0.0003863,2]
[354498454,1740539447195,-500.0,0.0003863,2]
[354498455,1740539447204,-500.0,0.0003863,2]
[354498456,1740539447214,-253.61208418,0.0003863,2]
[354498457,1740539447225,-442.50091897,0.0003863,2]
[354498458,1740539447234,-500.0,0.0003863,2]
[354498459,1740539447244,-500.0,0.0003863,2]
[354498460,1740539447253,-7776.18,0.0003863,2]
[354498461,1740539447263,-652.71,0.0003863,2]
[354498462,1740539447273,-571.9,0.0003863,2]
[354498463,1740539447281,-500.0,0.0003863,2]
[354498464,1740539447291,-5917.02,0.0003863,2]
[354498465,1740539447300,-500.0,0.0003863,2]
[354498466,1740539447309,-500.0,0.0003863,2]
[354498467,1740539447318,-500.0,0.0003863,2]
[354498469,1740539447328,-1085.17,0.0003863,2]
[354498471,1740539447338,-500.0,0.0003863,2]
[354498473,1740539447347,-500.0,0.0003863,2]
[354498475,1740539447356,-1877.3,0.0003863,2]
[354498477,1740539447365,-1397.22,0.0003863,2]
[354498479,1740539447375,-500.0,0.0003863,2]
[354498481,1740539447384,-500.0,0.0003863,2]
[354498483,1740539447393,-10146.57,0.0003863,2]
[354498485,1740539447402,-500.0,0.0003863,2]
[354498487,1740539447411,-151.0,0.0003863,14]
[354498489,1740539447420,-174.594096,0.0003863,14]
[354498491,1740539447429,-939.91,0.0003863,2]
[354498493,1740539447438,-1786.02,0.0003863,2]
[354498495,1740539447447,-731.5,0.0003863,2]
[354498497,1740539447457,-500.0,0.0003863,2]
[354498499,1740539447466,-500.0,0.0003863,2]
[354498501,1740539447476,-2838.83,0.0003863,2]
[354498503,1740539447485,-413.91529121,0.0003863,2]
[354498505,1740539447495,-1325.94,0.0003863,2]
[354498507,1740539447504,-500.0,0.0003863,2]
[354498509,1740539447514,-502.6927591,0.0003863,2]
[354498510,1740539447523,-500.0,0.0003863,2]
[354498511,1740539447532,-500.0,0.0003863,2]
[354498512,1740539447542,-2555.6,0.0003863,2]
[354498513,1740539447552,-500.0,0.0003863,2]
[354498514,1740539447570,-512.0930306,0.0003863,2]
[354498515,1740539447592,-500.0,0.0003863,2]
[354498516,1740539447607,-465.54834471,0.0003863,2]
[354498517,1740539448238,-30904.0,0.0003799,7]
[354498518,1740539448250,-89494.39830761,0.0003799,7]
[354498519,1740539448262,-457.5,0.0003799,7]
[354498520,1740539448283,-582.04603108,0.0003799,7]
[354498521,1740539448567,-376.86986144,0.0003799,7]
[354498522,1740539448580,-94238.69842144,0.0003799,7]
[354498523,1740539448592,-11762.97981665,0.0003799,7]
[354498524,1740539448604,-1482.104845,0.0003799,7]
[354498525,1740539448616,-315.929,0.0003799,7]
[354498526,1740539448656,-1699.10296557,0.0003799,7]
[354498527,1740539449157,-603.82781888,0.0003799,7]
[354498528,1740539449169,-1288.26418683,0.0003799,7]
[354498529,1740539449181,-7240.34132159,0.0003799,7]
[354498626,1740540632125,-300.0,0.00019999,2]
[354498628,1740540632134,-1516.83452671,0.0002,3]
[354498630,1740540632146,-341.16547329,0.0002,3]
[354498631,1740540632156,-1853.0,0.0002,3]
[354498632,1740540632165,-1612.0782522,0.0002,3]
[354498633,1740540632234,-240.9217478,0.0002,3]
[354498634,1740540632244,-1853.0,0.0002,3]
[354498635,1740540632253,-1853.0,0.0002,3]
[354498636,1740540632262,-1853.0,0.0002,3]
[354498637,1740540632271,-420.0,0.00021777,2]
[354498638,1740540632281,-722.72563408,0.00024,14]
[354498639,1740540632290,-203.90646697,0.00033004,2]
[354498640,1740540632299,-193.569,0.0003423,38]
[354498641,1740540632308,-223.97,0.00037989,3]
[354498642,1740540632318,-186.64,0.00037989,3]
[354498643,1740540632327,-186.64,0.00037989,3]
[354498644,1740540632339,-2512.0,0.0003799,120]
[354498645,1740540632351,-259552.93742,0.00037999,7]
[354498646,1740540632360,-177.73595527,0.00038,120]
[354498647,1740540632370,-27064.6,0.00038,30]
[354498648,1740540632381,-22867.3903754,0.00038346,3]
[354498649,1740540632390,-401.76,0.00038346,3]
[354498650,1740540632399,-895.87,0.00038346,3]
[354498651,1740540632408,-447.94,0.00038346,3]
[354498652,1740540632418,-329.94269331,0.00038355,15]
[354498653,1740540632427,-500.0,0.00038355,2]
[354498654,1740540632436,-500.0,0.00038355,15]
[354498655,1740540632446,-500.0,0.00038355,2]
[354498656,1740540632455,-559.81489583,0.00038355,15]
[354498657,1740540632464,-500.0,0.00038355,15]
[354498658,1740540632474,-500.0,0.00038355,15]
[354498659,1740540632483,-500.0,0.00038355,2]
[354498660,1740540632492,-500.0,0.00038355,15]
[354498661,1740540632501,-389.66978093,0.00038355,2]
[354498662,1740540632511,-500.0,0.00038355,15]
[354498663,1740540632521,-500.0,0.00038356,2]
[354498664,1740540632530,-500.99810636,0.00038356,2]
[354498665,1740540632540,-500.0,0.00038356,2]
[354498666,1740540632549,-500.0,0.00038356,2]
[354498667,1740540632559,-500.0,0.00038356,2]
[354498668,1740540632567,-500.0,0.00038356,2]
[354498669,1740540632577,-500.0,0.00038356,2]
[354498670,1740540632586,-500.0,0.00038356,2]
[354498671,1740540632595,-500.0,0.00038356,2]
[354498672,1740540632604,-500.0,0.00038356,2]
[354498673,1740540632613,-500.0,0.00038356,2]
[354498674,1740540632622,-268.711182,0.00038356,2]
[354498675,1740540632632,-500.0,0.00038356,2]
[354498676,1740540632641,-500.38729324,0.00038356,2]
[354498677,1740540632651,-500.0,0.00038356,2]
[354498678,1740540632660,-500.4657768,0.00038356,2]
[354498679,1740540632668,-500.36590777,0.00038356,2]
[354498680,1740540632677,-500.63756239,0.00038356,2]
[354498681,1740540632687,-500.48437176,0.00038356,2]
[354498682,1740540632696,-500.36691538,0.00038356,2]
[354498683,1740540632705,-500.0,0.00038356,2]
[354498684,1740540632714,-500.3581686,0.00038356,2]
[354498685,1740540632723,-500.51011035,0.00038356,2]
[354498686,1740540632732,-500.0,0.00038356,2]
[354498687,1740540632741,-500.0,0.00038356,2]
[354498688,1740540632751,-500.0,0.00038356,2]
[354498689,1740540632760,-502.68936023,0.00038356,2]
[354498690,1740540632769,-500.0,0.00038356,2]
[354498691,1740540632779,-500.0,0.00038356,2]
[354498692,1740540632787,-501.06707662,0.00038356,2]
[354498693,1740540632797,-500.0,0.00038356,2]
[354498694,1740540632807,-500.34671204,0.00038356,2]
[354498695,1740540632816,-500.0,0.00038356,2]
[354498696,1740540632825,-500.0,0.00038356,2]
[354498697,1740540632835,-500.0,0.00038356,2]
[354498698,1740540632844,-500.0,0.00038356,2]
[354498699,1740540632853,-499.57514846,0.00038356,2]
[354498700,1740540632863,-500.0,0.00038356,2]
[354498701,1740540632872,-500.0,0.00038356,2]
[354498702,1740540632882,-500.0,0.00038356,2]
[354498703,1740540632891,-500.0,0.00038356,2]
[354498704,1740540632900,-500.0,0.00038356,2]
[354498705,1740540632909,-500.0,0.00038356,2]
[354498706,1740540632918,-1020.72,0.00038356,2]
[354498707,1740540632927,-500.0,0.00038356,2]
[354498708,1740540632936,-500.0,0.00038356,2]
[354498709,1740540632945,-515.52552545,0.00038356,2]
[354498710,1740540632953,-712.44,0.00038356,2]
[354498711,1740540632963,-500.0,0.00038356,2]
[354498712,1740540632972,-500.0,0.00038356,2]
[354498713,1740540632981,-736.93,0.00038356,2]
[354498714,1740540632990,-500.0,0.00038356,2]
[354498715,1740540632999,-500.0,0.00038356,2]
[354498716,1740540633008,-500.0,0.00038356,2]
[354498717,1740540633017,-500.0,0.00038356,2]
[354498718,1740540633025,-500.0,0.00038356,2]
[354498719,1740540633036,-500.0,0.00038356,2]
[354498720,1740540633046,-500.0,0.00038356,2]
[354498721,1740540633056,-500.0,0.00038356,2]
[354498722,1740540633065,-500.0,0.00038356,2]
[354498723,1740540633074,-500.0,0.00038356,2]
[354498724,1740540633083,-329.10712457,0.00038356,2]
[354498725,1740540633092,-500.0,0.00038356,2]
[354498726,1740540633101,-500.0,0.00038356,2]
[354498727,1740540633111,-500.0,0.00038356,2]
[354498728,1740540633120,-500.0,0.00038356,2]
[354498729,1740540633129,-402.98074729,0.00038356,2]
[354498730,1740540633139,-552.43,0.00038356,2]
[354498731,1740540633148,-500.0,0.00038356,2]
[354498732,1740540633157,-1314.17,0.00038356,2]
[354498733,1740540633167,-338.70454062,0.00038356,2]
[354498734,1740540633176,-500.0,0.00038356,2]
[354498735,1740540633185,-508.01807182,0.00038356,2]
[354498736,1740540633194,-500.0,0.00038356,2]
[354498737,1740540633203,-500.0,0.00038356,2]
[354498738,1740540633213,-501.83,0.00038356,2]
[354498739,1740540633221,-500.0,0.00038356,2]
[354498740,1740540633231,-503.44570902,0.00038356,2]
[354498741,1740540633240,-500.0,0.00038356,2]
[354498742,1740540633251,-500.0,0.00038356,2]
[354498743,1740540633261,-500.0,0.00038356,2]
[354498744,1740540633271,-500.0,0.00038356,2]
[354498745,1740540633280,-672.96,0.00038356,2]
[354498746,1740540633289,-508.77208539,0.00038356,2]
[354498747,1740540633298,-500.0,0.00038356,2]
[354498748,1740540633307,-501.44939652,0.00038356,2]
[354498749,1740540633316,-1000.0,0.00038356,2]
[354498750,1740540633325,-623.27,0.00038356,2]
[354498751,1740540633335,-500.0,0.00038356,2]
[354498752,1740540633349,-500.0,0.00038356,2]
[354498753,1740540633358,-500.0,0.00038356,2]
[354498754,1740540633368,-500.0,0.00038356,2]
[354498755,1740540633377,-500.0,0.00038356,2]
[354498756,1740540633387,-500.0,0.00038356,2]
[354498757,1740540633396,-229.01440771,0.00038356,2]
[354498758,1740540633406,-845.82,0.00038356,2]
[354498759,1740540633416,-500.0,0.00038356,2]
[354498760,1740540633426,-500.0,0.00038356,2]
[354498761,1740540633436,-155.44938243,0.00038356,2]
[354498762,1740540633446,-500.0,0.00038356,2]
[354498763,1740540633455,-517.91,0.00038356,2]
[354498764,1740540633464,-500.0,0.00038356,2]
[354498765,1740540633474,-163.82168418,0.00038356,2]
[354498766,1740540633483,-935.21,0.00038356,2]
[354498767,1740540633493,-631.36,0.00038356,2]
[354498768,1740540633502,-514.21538256,0.00038356,2]
[354498769,1740540633511,-500.0,0.00038356,2]
[354498770,1740540633521,-500.0,0.00038356,2]
[354498771,1740540633531,-500.0,0.00038356,2]
[354498772,1740540633541,-500.0,0.00038356,2]
[354498773,1740540633551,-500.0,0.00038356,2]
[354498774,1740540633561,-500.0,0.00038356,2]
[354498775,1740540633570,-500.0,0.00038356,2]
[354498776,1740540633580,-500.0,0.00038356,2]
[354498777,1740540633590,-500.0,0.00038356,2]
[354498778,1740540633599,-500.0,0.00038356,2]
[354498779,1740540633608,-500.0,0.00038356,2]
[354498780,1740540633618,-291.57279135,0.00038356,2]
[354498781,1740540633628,-500.0,0.00038356,2]
[354498782,1740540633637,-500.0,0.00038356,2]
[354498783,1740540633647,-500.0,0.00038356,2]
[354498784,1740540633657,-500.0,0.00038356,2]
[354498785,1740540633666,-504.51842692,0.00038356,2]
[354498786,1740540633675,-500.0,0.00038356,2]
[354498787,1740540633685,-503.74851802,0.00038356,2]
[354498788,1740540633694,-500.0,0.00038356,2]
[354498789,1740540633703,-500.0,0.00038356,2]
[354498790,1740540633713,-500.0,0.00038356,2]
[354498791,1740540633722,-500.0,0.00038356,2]
[354498792,1740540633732,-500.0,0.00038356,2]
[354498793,1740540633742,-614.48033658,0.00038356,2]
[354498794,1740540633751,-504.26508409,0.00038356,2]
[354498795,1740540633760,-500.0,0.00038356,2]
[354498796,1740540633769,-597.99,0.00038356,2]
[354498797,1740540633778,-500.0,0.00038356,2]
[354498798,1740540633788,-500.0,0.00038356,2]
[354498799,1740540633798,-500.0,0.00038356,2]
[354498800,1740540633807,-500.0,0.00038356,2]
[354498801,1740540633817,-500.0,0.00038356,2]
[354498802,1740540633826,-500.0,0.00038356,2]
[354498803,1740540633835,-500.0,0.00038356,2]
[354498804,1740540633845,-500.0,0.00038356,2]
[354498805,1740540633854,-500.0,0.00038356,2]
[354498806,1740540633863,-306.71231268,0.00038356,2]
[354498807,1740540633872,-500.0,0.00038356,2]
[354498808,1740540633881,-435.74789247,0.00038356,2]
[354498809,1740540633891,-500.0,0.00038356,2]
[354498810,1740540633900,-500.0,0.00038356,2]
[354498811,1740540633909,-500.0,0.00038356,2]
[354498812,1740540633919,-500.0,0.00038356,2]
[354498813,1740540633928,-500.0,0.00038356,2]
[354498814,1740540633937,-582.85,0.00038356,2]
[354498815,1740540633946,-714.78,0.00038356,2]
[354498816,1740540633955,-500.0,0.00038356,2]
[354498817,1740540633964,-500.0,0.00038356,2]
[354498818,1740540633972,-644.9,0.00038356,2]
[354498819,1740540633981,-500.0,0.00038356,2]
[354498820,1740540633990,-500.0,0.00038356,2]
[354498821,1740540634000,-517.04338396,0.00038356,2]
[354498822,1740540634009,-500.0,0.00038356,2]
[354498823,1740540634019,-500.0,0.00038356,2]
[354498824,1740540634028,-772.69,0.00038356,2]
[354498825,1740540634037,-500.0,0.00038356,2]
[354498826,1740540634048,-500.0,0.00038356,2]
[354498827,1740540634057,-500.0,0.00038356,2]
[354498828,1740540634067,-1386.52,0.00038356,2]
[354498829,1740540634076,-500.0,0.00038356,2]
[354498830,1740540634085,-500.0,0.00038356,2]
[354498831,1740540634094,-500.0,0.00038356,2]
[354498832,1740540634104,-1231.44,0.00038356,2]
[354498833,1740540634113,-667.63,0.00038356,2]
[354498834,1740540634122,-500.0,0.00038356,2]
[354498835,1740540634132,-500.0,0.00038356,2]
[354498836,1740540634141,-300.0,0.00038356,120]
[354498837,1740540634150,-910.31,0.00038356,2]
[354498838,1740540634160,-500.0,0.00038356,2]
[354498839,1740540634169,-1192.68,0.00038356,2]
[354498840,1740540634179,-2166.37,0.00038356,2]
[354498841,1740540634188,-500.0,0.00038356,2]
[354498842,1740540634198,-500.0,0.00038356,2]
[354498843,1740540634207,-500.0,0.00038356,2]
[354498844,1740540634216,-500.0,0.00038356,2]
[354498845,1740540634226,-500.0,0.00038356,2]
[354498846,1740540634236,-500.0,0.00038356,2]
[354498847,1740540634245,-500.0,0.00038356,2]
[354498848,1740540634255,-500.0,0.00038356,2]
[354498849,1740540634265,-500.0,0.00038356,2]
[354498850,1740540634274,-500.0,0.00038356,2]
[354498851,1740540634284,-483.8775717,0.00038356,2]
[354498852,1740540634295,-1608.85,0.00038356,2]
[354498853,1740540634304,-500.0,0.00038356,2]
[354498854,1740540634313,-604.34,0.00038356,2]
[354498855,1740540634323,-500.0,0.00038356,2]
[354498856,1740540634333,-330.06897509,0.00038356,2]
[354498857,1740540634345,-524.25,0.00038356,2]
[354498858,1740540634355,-500.0,0.00038356,2]
[354498859,1740540634364,-500.0,0.00038356,2]
[354498860,1740540634374,-500.0,0.00038356,2]
[354498861,1740540634385,-500.0,0.00038356,2]
[354498862,1740540634395,-861.58,0.00038356,2]
[354498863,1740540634404,-1159.59,0.00038356,2]
[354498864,1740540634414,-1637.19,0.00038356,2]
[354498865,1740540634425,-1709.13,0.00038356,2]
[354498866,1740540634435,-500.0,0.00038356,2]
[354498867,1740540634444,-500.0,0.00038356,2]
[354498868,1740540634454,-2478.25,0.00038356,2]
[354498869,1740540634463,-500.0,0.00038356,2]
[354498870,1740540634472,-500.0,0.00038356,2]
[354498871,1740540634482,-500.0,0.00038356,2]
[354498872,1740540634491,-500.0,0.00038356,2]
[354498873,1740540634500,-830.97,0.00038356,2]
[354498874,1740540634511,-500.0,0.00038356,2]
[354498875,1740540634520,-881.59,0.00038356,2]
[354498876,1740540634530,-503.68412067,0.00038356,2]
[354498877,1740540634539,-501.96615534,0.00038356,2]
[354498878,1740540634549,-500.0,0.00038356,2]
[354498879,1740540634559,-500.0,0.00038356,2]
[354498880,1740540634569,-500.0,0.00038356,2]
[354498881,1740540634579,-500.0,0.00038356,2]
[354498882,1740540634588,-500.0,0.00038356,2]
[354498883,1740540634597,-500.0,0.00038356,2]
[354498884,1740540634607,-971.52,0.00038356,2]
[354498885,1740540634616,-502.0239884,0.00038356,2]
[354498886,1740540634626,-1158.84,0.00038356,2]
[354498887,1740540634635,-500.0,0.00038356,2]
[354498888,1740540634644,-599.67891065,0.00038356,2]
[354498889,1740540634654,-500.0,0.00038356,2]
[354498890,1740540634663,-510.5,0.00038356,2]
[354498891,1740540634672,-500.0,0.00038356,2]
[354498892,1740540634682,-500.0,0.00038356,2]
[354498893,1740540634691,-523.62,0.00038356,2]
[354498894,1740540634700,-1182.17,0.00038356,2]
[354498895,1740540634709,-500.0,0.00038356,2]
[354498896,1740540634719,-2562.41,0.00038356,2]
[354498897,1740540634728,-607.99575099,0.00038356,2]
[354498898,1740540634738,-500.0,0.00038356,2]
[354498899,1740540634748,-500.0,0.00038356,2]
[354498900,1740540634757,-1492.21,0.00038356,2]
[354498901,1740540634767,-544.11831553,0.00038356,2]
[354498902,1740540634776,-500.0,0.00038356,2]
[354498903,1740540634785,-500.0,0.00038356,2]
[354498904,1740540634795,-500.0,0.00038356,2]
[354498905,1740540634805,-501.0457146,0.00038356,2]
[354498906,1740540634814,-1080.35,0.00038356,2]
[354498907,1740540634825,-514.69555516,0.00038356,2]
[354498908,1740540634834,-500.0,0.00038356,2]
[354498909,1740540634843,-500.0,0.00038356,2]
[354498910,1740540634853,-500.0,0.00038356,2]
[354498911,1740540634862,-965.32,0.00038356,2]
[354498912,1740540634871,-500.0,0.00038356,2]
[354498913,1740540634880,-500.0,0.00038356,2]
[354498914,1740540634889,-760.86,0.00038356,2]
[354498915,1740540634898,-500.0,0.00038356,2]
[354498916,1740540634908,-500.0,0.00038356,2]
[354498917,1740540634917,-547.66,0.00038356,2]
[354498918,1740540634927,-500.0,0.00038356,2]
[354498919,1740540634936,-667.43,0.00038356,2]
[354498920,1740540634945,-727.95,0.00038356,2]
[354498921,1740540634954,-500.0,0.00038356,2]
[354498922,1740540634963,-704.56,0.00038356,2]
[354498923,1740540634973,-500.0,0.00038356,2]
[354498924,1740540634982,-500.0,0.00038356,2]
[354498925,1740540634991,-500.0,0.00038356,2]
[354498926,1740540635001,-2013.39,0.00038356,2]